fUSD/lending_fUSD_20250916
["ID","MTS","AMOUNT","RATE_DAILY","PERIOD"]
[385763638,1758027032663,-150.0,0.00023513,7]
[385763639,1758027032672,-770.0,0.00023554,2]
[385763640,1758027032686,-159.28,0.00023649,2]
[385763641,1758027032698,-380.0,0.00023688,2]
[385763642,1758027032707,-174.75,0.00023726,2]
[385763643,1758027032718,-380.0,0.00023741,2]
[385763644,1758027032727,-380.0,0.00023759,2]
[385763645,1758027032737,-150.0,0.00023781,2]
[385763646,1758027032747,-150.0,0.00023787,7]
[385763647,1758027032757,-380.0,0.0002379,2]
[385763648,1758027032766,-168.72861147,0.00023799,2]
[385763649,1758027032776,-770.0,0.00023828,2]
[385763650,1758027032786,-357.08,0.00023861,2]
[385763651,1758027032795,-210.08,0.00023861,2]
[385763652,1758027032805,-197.0,0.00023878,2]
[385763653,1758027032815,-168.0,0.00023878,2]
[385763654,1758027032825,-1164.07306258,0.00023899,2]
[385763657,1758027037553,-160.0,0.0002291,2]
[385763658,1758027037563,-3933.88,0.00023899,2]
[385763674,1758027042993,-151.0,0.00022708,7]
[385763675,1758027043005,-151.0,0.00022708,7]
[385763676,1758027043015,-151.0,0.00022708,7]
[385763677,1758027043024,-6483.32304124,0.00023899,2]
[385763678,1758027043034,-380.0,0.00023935,2]
[385763679,1758027043043,-162.99435786,0.00023999,2]
[385763907,1758027045637,-677.91048598,0.00023999,2]
[385763908,1758027045746,-577.56145244,0.00023999,2]
[385763909,1758027045758,-1069.03504557,0.00023999,2]
[385763910,1758027045906,-5436.7344697,0.00023999,2]
[385763911,1758027046015,-2337.24999236,0.00023999,2]
[385764197,1758027407121,500.0,0.00013699,2]
[385764199,1758027452683,218.21094926,0.00013631,2]
[385764205,1758027816153,4196.15026784,0.00030136,120]
[385764212,1758027927936,155.01,0.0001126,2]
[385764213,1758027928153,155.01,0.00012011,2]
[385764214,1758027928404,155.01,0.00012762,2]
[385764215,1758027928610,155.01,0.00013512,2]
[385764216,1758027928847,155.01,0.00014263,2]
[385764217,1758027929107,155.01,0.00015014,2]
[385764218,1758027929336,155.01,0.00015764,2]
[385764219,1758027929645,155.01,0.00016515,2]
[385764220,1758027930092,155.01,0.00017266,2]
[385764221,1758027930182,155.01,0.00018016,2]
[385764222,1758027930256,155.01,0.00018767,2]
[385764223,1758027930471,155.01,0.00019518,2]
[385764235,1758028214567,1014.15370469,0.00030136,120]
[385764255,1758028232543,-523.29537798,0.00020268,2]
[385764258,1758028232552,-330.39864169,0.00020268,2]
[385764262,1758028232564,-0.58752605,0.00020268,2]
[385764265,1758028232573,-155.01,0.00020268,2]
[385764268,1758028232582,-133.38630722,0.000208,2]
[385764274,1758028232620,-410.41181084,0.000208,2]
[385764277,1758028232630,-155.01,0.00021019,2]
[385764278,1758028232639,-100.57818916,0.00021268,2]
[385764281,1758028232651,-94.31920206,0.00021268,2]
[385764283,1758028232660,-316.51256489,0.00021369,2]
[385764285,1758028232669,-151.0,0.00021383,2]
[385764287,1758028232679,-151.0,0.00021392,2]
[385764289,1758028232688,-1071.61642884,0.00021392,2]
[385764291,1758028232697,-151.0,0.00021394,2]
[385764293,1758028232707,-64.55180421,0.00021398,2]
[385764307,1758028232828,-86.44819579,0.00021398,2]
[385764309,1758028232839,-155.01,0.0002177,2]
[385764311,1758028232849,-154.0,0.00022,2]
[385764313,1758028232860,-163.39,0.00022,2]
[385764315,1758028232870,-706.29350184,0.00022261,2]
[385764341,1758028237948,-277.72,0.00022,2]
[385764342,1758028237957,-96.79649816,0.00022261,2]
[385764343,1758028237966,-942.92,0.00022261,2]
[385764344,1758028237976,-300.0,0.00022295,2]
[385764345,1758028237985,-2000.0,0.00022295,3]
[385764346,1758028237994,-300.0,0.00022365,2]
[385764347,1758028238003,-419.01250184,0.00022365,2]
[385764348,1758028238299,-780.98749816,0.00022365,2]
[385764349,1758028238308,-2261.11642184,0.00022366,2]
[385764376,1758028240159,-2311.746,0.00022366,2]
[385764412,1758028243176,-427.13757816,0.00022366,2]
[385764413,1758028243185,-24.32242185,0.00022408,2]
[385764414,1758028243260,-146.13757815,0.00022408,2]
[385764415,1758028243269,-112.42804402,0.00022492,2]
[385764416,1758028243317,-137.57195598,0.00022492,2]
[385764417,1758028243327,-155.01,0.0002252,2]
[385764418,1758028243336,-1135.0,0.0002255,2]
[385764419,1758028243345,-168.0,0.00022571,2]
[385764420,1758028243355,-2344.70505184,0.00022583,2]
[385764428,1758028246325,-151.0,0.00021394,2]
[385764429,1758028246335,-17145.25494816,0.00022583,2]
[385764430,1758028246345,-151.0,0.00022584,7]
[385764431,1758028246355,-300.0,0.00022586,2]
[385764432,1758028246364,-4575.55,0.00022587,2]
[385764433,1758028246373,-365.17,0.00022596,2]
[385764435,1758028246628,-1000.0,0.00022596,2]
[385764436,1758028246651,-150.0,0.000226,7]
[385764438,1758028246660,-482.6,0.00022686,2]
[385764439,1758028246670,-666.0,0.00022714,3]
[385764440,1758028246680,-232.74,0.00022754,2]
[385764441,1758028246690,-166.86,0.00022796,2]
[385764442,1758028246699,-323.0,0.000228,2]
[385764443,1758028246709,-168.0,0.00022805,2]
[385764444,1758028246719,-515.95536276,0.00022874,2]
[385764445,1758028246728,-160.0,0.00022874,2]
[385764446,1758028246738,-154.0,0.00023014,7]
[385764447,1758028246747,-196.52,0.00023097,2]
[385764448,1758028246757,-309.0,0.00023123,2]
[385764449,1758028246766,-176.0,0.00023402,2]
[385764450,1758028246776,-176.0,0.00023406,2]
[385764451,1758028246786,-176.0,0.00023426,2]
[385764452,1758028246796,-528.82,0.00023562,2]
[385764453,1758028246805,-410.99,0.00023562,2]
[385764454,1758028246815,-410.85,0.00023562,2]
[385764455,1758028246824,-150.0,0.00023649,2]
[385764456,1758028246834,-166.74,0.00023687,2]
[385764457,1758028246843,-176.0,0.00023718,2]
[385764458,1758028246853,-174.75,0.00023726,2]
[385764459,1758028246862,-2111.6701,0.0002376,2]
[385764460,1758028246871,-919.43043016,0.00023791,2]
[385764462,1758028373656,1000.0,0.00030136,120]
[385764465,1758028707886,208.5555175,0.000301,120]
[385764467,1758028730101,-154.0,0.00022,2]
[385764468,1758028730123,-246.87,0.00022,2]
[385764469,1758028730146,-150.0,0.0002208,2]
[385764470,1758028730166,-222.25303948,0.0002218,2]
[385764471,1758028730186,-152.85,0.00022253,2]
[385764472,1758028730206,-260.66714507,0.00022281,2]
[385764473,1758028730227,-299.08125066,0.00022381,2]
[385764474,1758028730248,-337.49535625,0.00022482,2]
[385764475,1758028730268,-375.90946183,0.00022582,2]
[385764476,1758028730289,-253.71044667,0.0002267,2]
[385764477,1758028730311,-168.39341078,0.0002267,2]
[385764478,1758028730332,-42070.148313,0.00022671,2]
[385764479,1758028730352,-150.0,0.00022674,7]
[385764480,1758028730378,-250.0,0.00022674,2]
[385764481,1758028730400,-414.32356742,0.00022683,2]
[385764482,1758028730421,-452.73767301,0.00022783,2]
[385764483,1758028730442,-491.1517786,0.00022884,2]
[385764484,1758028730462,-529.56588419,0.00022984,2]
[385764485,1758028730482,-170.72,0.00022999,2]
[385764486,1758028730501,-666.0,0.00023012,3]
[385764487,1758028730522,-154.0,0.00023014,7]
[385764488,1758028730542,-567.97998978,0.00023085,2]
[385764489,1758028730565,-392.19,0.00023151,2]
[385764490,1758028730585,-556.14,0.00023184,2]
[385764491,1758028730606,-606.39409537,0.00023186,2]
[385764492,1758028730629,-644.80820096,0.00023286,2]
[385764493,1758028730649,-150.0,0.00023305,2]
[385764494,1758028730676,-683.22230655,0.00023387,2]
[385764495,1758028730701,-174.0,0.00023451,2]
[385764496,1758028730723,-721.63641214,0.00023487,2]
[385764497,1758028730745,-500.0,0.000235,2]
[385764498,1758028730768,-760.05051772,0.00023588,2]
[385764499,1758028730790,-798.46462331,0.00023688,2]
[385764500,1758028730813,-310.0,0.000237,2]
[385764501,1758028730841,-174.0,0.00023722,2]
[385764502,1758028730863,-168.0,0.0002375,2]
[385764503,1758028730887,-536.49759145,0.00023777,2]
[385764504,1758028730909,-267.46074303,0.00023777,2]
[385764505,1758028730930,-515.95536276,0.00023784,2]
[385764506,1758028730951,-160.0,0.00023784,2]
[385764507,1758028730973,-836.8787289,0.00023789,2]
[385764508,1758028730994,-23958.52610375,0.0002379,2]
[385764509,1758028731017,-206072.25755073,0.0002379,2]
[385764510,1758028731042,-4784.97443734,0.00023791,2]
[385764511,1758028731064,-1865.8683142,0.00023791,2]
[385764512,1758028731085,-1095.2301615,0.00023791,2]
[385764513,1758028731106,-1759.72508,0.00023791,2]
[385764514,1758028731128,-1000.0,0.000238,2]
[385764515,1758028731150,-176.0,0.00023848,2]
[385764516,1758028731172,-246.87,0.00023861,2]
[385764517,1758028731193,-875.29283449,0.00023889,2]
[385764518,1758028731215,-176.0,0.00023944,2]
[385764519,1758028731236,-500.0,0.00023965,2]
[385764520,1758028731259,-174.0,0.00023977,2]
[385764521,1758028731282,-913.70694008,0.0002399,2]
[385764522,1758028731307,-783.6259668,0.00023999,2]
[385764523,1758028731329,-441.30296158,0.00023999,2]
[385764524,1758028731352,-151.0,0.00023999,7]
[385764525,1758028731374,-151.0,0.00023999,7]
[385764526,1758028731396,-151.0,0.00023999,7]
[385764527,1758028731416,-151.0,0.00023999,7]
[385764528,1758028731437,-200.0,0.00024086,2]
[385764529,1758028731457,-11026.0,0.000241,2]
[385764530,1758028731478,-322.6107,0.0002414,2]
[385764531,1758028731502,-151.0,0.0002414,2]
[385764532,1758028731523,-151.0,0.0002414,2]
[385764533,1758028731543,-151.0,0.0002414,2]
[385764534,1758028731566,-151.0,0.0002414,2]
[385764535,1758028731587,-151.0,0.0002414,2]
[385764536,1758028731609,-151.0,0.0002414,2]
[385764537,1758028731633,-151.0,0.0002414,2]
[385764538,1758028731655,-160.0,0.0002414,2]
[385764539,1758028731678,-151.0,0.0002414,2]
[385764540,1758028731700,-151.0,0.0002414,2]
[385764541,1758028731724,-151.0,0.0002414,2]
[385764542,1758028731746,-151.0,0.0002414,2]
[385764543,1758028731768,-151.0,0.0002414,2]
[385764544,1758028731789,-151.0,0.0002414,2]
[385764545,1758028731809,-151.0,0.0002414,2]
[385764546,1758028731843,-243.30120936,0.0002414,2]
[385764547,1758028731867,-151.0,0.0002414,2]
[385764548,1758028732223,-151.0,0.0002414,2]
[385764549,1758028732243,-151.0,0.0002414,2]
[385764550,1758028732262,-151.0,0.0002414,2]
[385764551,1758028732281,-151.0,0.0002414,2]
[385764552,1758028732301,-151.0,0.0002414,2]
[385764553,1758028732320,-721.12765535,0.0002414,2]
[385764554,1758028732339,-204.26016796,0.0002414,2]
[385764555,1758028732358,-150.0,0.0002414,2]
[385764556,1758028732380,-176.0,0.00024145,2]
[385764557,1758028732401,-151.0,0.00024154,7]
[385764558,1758028732422,-151.0,0.00024154,7]
[385764559,1758028732444,-151.0,0.00024154,7]
[385764560,1758028732465,-151.0,0.00024154,7]
[385764561,1758028732484,-6177.0,0.00024154,2]
[385764562,1758028732504,-4171.0,0.00024154,2]
[385764563,1758028732525,-10935.32702991,0.0002416,2]
[385764564,1758028732546,-277.11953874,0.0002416,2]
[385764565,1758028732569,-4076.2978,0.00024161,2]
[385764566,1758028732595,-1000.0,0.00024161,2]
[385764567,1758028732616,-6480.2823202,0.00024161,2]
[385764568,1758028732640,-4032.1878,0.00024161,2]
[385764569,1758028732663,-176.0,0.00024236,2]
[385764570,1758028732685,-151.0,0.0002426,7]
[385764571,1758028732706,-191532.1682,0.0002426,2]
[385764572,1758028732728,-2500.0,0.0002426,2]
[385764573,1758028732748,-1000.0,0.00024261,2]
[385764574,1758028732769,-2971.2461,0.00024261,2]
[385764575,1758028732789,-7785.805,0.00024261,2]
[385764576,1758028732812,-174.0,0.00024288,2]
[385764577,1758028732834,-166.26,0.00024292,2]
[385764578,1758028732855,-203.0,0.0002434,2]
[385764579,1758028732879,-150.0,0.0002436,2]
[385764580,1758028732901,-674.0,0.0002436,7]
[385764581,1758028732923,-450.0,0.00024364,2]
[385764582,1758028732945,-160.0,0.00024375,2]
[385764583,1758028732967,-233.2,0.00024378,6]
[385764584,1758028732991,-168.72861147,0.00024382,2]
[385764585,1758028733014,-174.0,0.00024443,2]
[385764586,1758028733036,-176.0,0.00024476,2]
[385764587,1758028733061,-2004.46,0.000245,2]
[385764588,1758028733083,-500.0,0.000245,3]
[385764589,1758028733103,-975.52588786,0.00024574,2]
[385764590,1758028733124,-500.0,0.00024581,5]
[385764591,1758028733146,-1260.0,0.00024581,2]
[385764592,1758028733167,-726.0,0.00024581,2]
[385764593,1758028733188,-2039.0,0.00024581,2]
[385764594,1758028733208,-755.0,0.00024581,2]
[385764595,1758028733228,-3390.0,0.00024581,2]
[385764596,1758028733248,-18866.0,0.00024581,2]
[385764597,1758028733269,-602.0,0.00024581,2]
[385764598,1758028733289,-1303.0,0.00024581,2]
[385764599,1758028733313,-1581.0,0.00024581,2]
[385764600,1758028733334,-568.0,0.00024581,2]
[385764601,1758028733354,-1181.766,0.00024581,2]
[385764602,1758028733376,-4225.0,0.00024581,2]
[385764603,1758028733396,-813.0,0.00024581,2]
[385764604,1758028733417,-5513.0,0.000246,3]
[385764605,1758028733438,-20559.03694317,0.0002463,2]
[385764606,1758028733459,-674.0,0.00024634,7]
[385764607,1758028733480,-1000.0,0.00024657,10]
[385764608,1758028733501,-1000.0,0.00024657,10]
[385764609,1758028733522,-1000.0,0.00024657,10]
[385764610,1758028733543,-1000.0,0.00024657,10]
[385764611,1758028733570,-1000.0,0.00024657,10]
[385764612,1758028733591,-1000.0,0.00024657,10]
[385764613,1758028733613,-1000.0,0.00024657,10]
[385764614,1758028733637,-1000.0,0.00024657,10]
[385764615,1758028733659,-1000.0,0.00024657,10]
[385764616,1758028733680,-1000.0,0.00024657,10]
[385764617,1758028733700,-1000.0,0.00024657,10]
[385764618,1758028733723,-1000.0,0.00024657,10]
[385764619,1758028733744,-1000.0,0.00024657,10]
[385764620,1758028733766,-1000.0,0.00024657,10]
[385764621,1758028733787,-1000.0,0.00024657,10]
[385764622,1758028733809,-1000.0,0.00024657,10]
[385764623,1758028733832,-498.57252643,0.00024657,10]
[385764624,1758028733852,-515.95536276,0.00024657,10]
[385764625,1758028733874,-515.95536276,0.00024658,7]
[385764626,1758028733895,-151.0,0.00024658,7]
[385764627,1758028733916,-212.328049,0.00024658,7]
[385764628,1758028733937,-151.0,0.00024658,7]
[385764629,1758028733957,-151.0,0.00024658,7]
[385764630,1758028733978,-151.0,0.00024658,7]
[385764631,1758028733999,-151.0,0.00024658,7]
[385764632,1758028734021,-151.0,0.00024658,7]
[385764633,1758028734041,-151.0,0.00024658,7]
[385764634,1758028734065,-1000.0,0.00024658,2]
[385764635,1758028734087,-469.0,0.00024658,2]
[385764636,1758028734108,-153.233378,0.00024658,7]
[385764637,1758028734132,-177.62,0.00024658,2]
[385764638,1758028734153,-1000.0,0.00024658,2]
[385764639,1758028734174,-1000.0,0.00024658,2]
[385764640,1758028734196,-151.0,0.00024658,7]
[385764641,1758028734217,-151.0,0.00024658,7]
[385764642,1758028734237,-151.0,0.00024658,7]
[385764643,1758028734258,-151.0,0.00024658,7]
[385764644,1758028734279,-151.0,0.00024658,7]
[385764645,1758028734300,-151.0,0.00024658,7]
[385764646,1758028734320,-151.0,0.00024658,7]
[385764647,1758028734341,-151.0,0.00024658,7]
[385764648,1758028734362,-151.0,0.00024658,7]
[385764649,1758028734383,-297.868793,0.00024658,7]
[385764650,1758028734403,-1000.0,0.00024658,2]
[385764651,1758028734423,-1000.0,0.00024658,2]
[385764652,1758028734444,-1000.0,0.00024658,2]
[385764653,1758028734465,-1000.0,0.00024658,2]
[385764654,1758028734486,-177.705481,0.00024658,7]
[385764655,1758028734507,-1000.0,0.00024658,2]
[385764656,1758028734528,-1000.0,0.00024658,2]
[385764657,1758028734550,-151.0,0.00024658,7]
[385764658,1758028734578,-151.0,0.00024658,7]
[385764659,1758028734602,-151.0,0.00024658,7]
[385764660,1758028734624,-151.0,0.00024658,7]
[385764661,1758028734649,-151.0,0.00024658,7]
[385764662,1758028734671,-151.0,0.00024658,7]
[385764663,1758028734693,-258.88074,0.00024658,7]
[385764664,1758028734715,-169.558536,0.00024658,7]
[385764665,1758028734737,-169.558536,0.00024658,7]
[385764666,1758028734759,-169.558536,0.00024658,7]
[385764667,1758028734781,-169.558536,0.00024658,7]
[385764668,1758028734803,-169.558536,0.00024658,7]
[385764669,1758028734825,-169.558536,0.00024658,7]
[385764670,1758028734847,-169.558536,0.00024658,7]
[385764671,1758028734868,-169.558536,0.00024658,7]
[385764672,1758028734895,-169.558536,0.00024658,7]
[385764673,1758028734917,-169.558536,0.00024658,7]
[385764674,1758028734939,-169.558536,0.00024658,7]
[385764675,1758028734960,-169.558536,0.00024658,7]
[385764676,1758028734982,-169.558536,0.00024658,7]
[385764677,1758028735004,-169.558536,0.00024658,7]
[385764678,1758028735026,-169.558536,0.00024658,7]
[385764679,1758028735047,-169.558536,0.00024658,7]
[385764680,1758028735068,-169.558536,0.00024658,7]
[385764681,1758028735089,-169.558536,0.00024658,7]
[385764682,1758028735110,-169.558536,0.00024658,7]
[385764683,1758028735132,-169.558544,0.00024658,7]
[385764684,1758028735154,-1000.0,0.00024658,2]
[385764685,1758028735174,-1000.0,0.00024658,2]
[385764686,1758028735195,-151.0,0.00024658,7]
[385764687,1758028735216,-151.0,0.00024658,7]
[385764688,1758028735239,-151.0,0.00024658,7]
[385764689,1758028735261,-151.0,0.00024658,7]
[385764690,1758028735284,-151.0,0.00024658,7]
[385764691,1758028735307,-151.0,0.00024658,7]
[385764692,1758028735328,-151.0,0.00024658,7]
[385764693,1758028735350,-151.0,0.00024658,7]
[385764694,1758028735373,-161.536552,0.00024658,7]
[385764695,1758028735402,-604.685231,0.00024658,7]
[385764696,1758028735423,-160.00982,0.00024658,7]
[385764697,1758028735446,-604.685231,0.00024658,7]
[385764698,1758028735468,-604.685231,0.00024658,7]
[385764699,1758028735490,-604.685231,0.00024658,7]
[385764700,1758028735511,-604.685231,0.00024658,7]
[385764701,1758028735532,-604.685231,0.00024658,7]
[385764702,1758028735769,-604.685231,0.00024658,7]
[385764703,1758028735791,-604.685231,0.00024658,7]
[385764704,1758028735813,-604.685231,0.00024658,7]
[385764705,1758028735837,-604.685231,0.00024658,7]
[385764706,1758028735859,-604.685231,0.00024658,7]
[385764707,1758028735881,-604.685231,0.00024658,7]
[385764708,1758028735905,-151.0,0.00024658,7]
[385764709,1758028735927,-151.0,0.00024658,7]
[385764710,1758028735949,-604.685231,0.00024658,7]
[385764711,1758028735970,-175.376407,0.00024658,7]
[385764712,1758028735992,-604.685231,0.00024658,7]
[385764713,1758028736014,-604.685231,0.00024658,7]
[385764714,1758028736035,-604.685231,0.00024658,7]
[385764715,1758028736055,-604.685231,0.00024658,7]
[385764716,1758028736078,-604.685231,0.00024658,7]
[385764717,1758028736099,-604.685231,0.00024658,7]
[385764718,1758028736120,-604.685235,0.00024658,7]
[385764719,1758028736142,-151.0,0.00024658,7]
[385764720,1758028736162,-151.0,0.00024658,7]
[385764721,1758028736184,-151.0,0.00024658,7]
[385764722,1758028736205,-151.0,0.00024658,7]
[385764723,1758028736226,-223.777549,0.00024658,7]
[385764724,1758028736248,-1000.0,0.00024658,2]
[385764725,1758028736268,-1000.0,0.00024658,2]
[385764726,1758028736290,-151.0,0.00024658,7]
[385764727,1758028736312,-151.0,0.00024658,7]
[385764728,1758028736333,-151.0,0.00024658,7]
[385764729,1758028736356,-151.0,0.00024658,7]
[385764730,1758028736379,-236.221036,0.00024658,7]
[385764731,1758028736399,-1000.0,0.00024658,2]
[385764732,1758028736419,-1000.0,0.00024658,2]
[385764733,1758028736439,-151.0,0.00024658,7]
[385764734,1758028736461,-151.0,0.00024658,7]
[385764735,1758028736485,-151.0,0.00024658,7]
[385764736,1758028736506,-186.40585,0.00024658,7]
[385764737,1758028736526,-152.149632,0.00024658,7]
[385764738,1758028736546,-151.0,0.00024658,7]
[385764739,1758028736571,-233.262935,0.00024658,7]
[385764740,1758028736593,-152.731805,0.00024658,7]
[385764741,1758028736615,-151.0,0.00024658,7]
[385764742,1758028736640,-151.0,0.00024658,7]
[385764743,1758028736661,-151.0,0.00024658,7]
[385764744,1758028736681,-150.0,0.00024658,7]
[385764745,1758028736702,-166.74,0.00024664,2]
[385764746,1758028736724,-150.0,0.00024675,2]
[385764747,1758028736745,-232.14116981,0.00024675,2]
[385764748,1758028736767,-1000.0,0.00024713,2]
[385764749,1758028736788,-1000.0,0.00024729,2]
[385764750,1758028736810,-1000.0,0.00024764,2]
[385764751,1758028736832,-1425.0,0.00024781,2]
[385764752,1758028736853,-5000.0,0.0002479,2]
[385764753,1758028736875,-723.00498582,0.00024793,2]
[385764756,1758028812500,-1000.0,0.0002369,2]
[385764757,1758028812522,-130274.2429,0.0002369,2]
[385764758,1758028812544,-1000.0,0.0002369,2]
[385764759,1758028812565,-3312.0537,0.0002369,2]
[385764760,1758028812588,-150.0,0.00023794,2]
[385764761,1758028812610,-152.07500255,0.00023799,2]
[385764762,1758028812631,-200.0,0.00023856,2]
[385764763,1758028812653,-1425.0,0.00023872,2]
[385764764,1758028812677,-1425.0,0.00023939,2]
[385764765,1758028812700,-1425.0,0.00024013,2]
[385764766,1758028812722,-1000.0,0.00024027,2]
[385764767,1758028812742,-1425.0,0.00024027,2]
[385764768,1758028812765,-1000.0,0.00024058,2]
[385764769,1758028812787,-294.20197439,0.00024145,2]
[385764770,1758028812809,-1000.0,0.00024658,2]
[385764771,1758028812833,-701.99501418,0.00024793,2]
[385764772,1758028812855,-192.01,0.00024793,2]
[385764773,1758028812877,-103036.12877537,0.000248,2]
[385764774,1758028812898,-1000.46217114,0.000248,2]
[385764775,1758028812920,-500.0,0.000248,9]
[385764776,1758028812941,-477.84924023,0.000248,2]
[385764777,1758028812966,-192286.975172,0.000248,2]
[385764778,1758028812990,-191.0,0.00024809,2]
[385764779,1758028813012,-151.30862984,0.00024812,2]
[385764780,1758028813035,-6480.2823202,0.00024814,2]
[385764781,1758028813057,-1000.0,0.00024826,2]
[385764782,1758028813078,-1000.0,0.00024829,2]
[385764783,1758028813101,-10935.32702984,0.00024843,2]
[385764784,1758028813124,-1000.0,0.00024851,2]
[385764785,1758028813146,-500.0,0.00024855,5]
[385764786,1758028813169,-1000.0,0.0002486,2]
[385764787,1758028813192,-13734.7839409,0.00024863,2]
[385764788,1758028813216,-165.64371548,0.00024864,2]
[385764789,1758028813239,-500.0,0.00024873,2]
[385764790,1758028813261,-589.1087581,0.00024873,2]
[385764791,1758028813284,-501.28133671,0.00024873,2]
[385764792,1758028813306,-502.22896338,0.00024873,2]
[385764793,1758028813327,-211.34258891,0.00024873,2]
[385764794,1758028813349,-401.22170398,0.00024873,2]
[385764795,1758028813372,-159.85200494,0.00024873,2]
[385764796,1758028813393,-500.4200175,0.00024873,2]
[385764797,1758028813414,-500.0,0.00024873,2]
[385764798,1758028813436,-500.0,0.00024873,2]
[385764799,1758028813458,-500.0,0.00024873,2]
[385764800,1758028813479,-504.27452211,0.00024873,2]
[385764801,1758028813501,-500.0,0.00024873,2]
[385764802,1758028813522,-506.4709241,0.00024873,2]
[385764803,1758028813543,-500.0,0.00024873,2]
[385764804,1758028813566,-150.0,0.00024877,2]
[385764805,1758028813591,-304.0,0.0002488,2]
[385764806,1758028813613,-213.1401216,0.00024889,3]
[385764807,1758028813636,-123613.055468,0.0002489,2]
[385764808,1758028813658,-150.0,0.00024893,2]
[385764809,1758028813681,-706.76184541,0.00024897,2]
[385764810,1758028813703,-49822.0,0.000249,2]
[385764811,1758028813729,-213.1401216,0.000249,7]
[385764812,1758028813752,-658.51077035,0.000249,2]
[385764813,1758028813774,-299.36579864,0.000249,2]
[385764814,1758028813797,-1100.0,0.000249,9]
[385764815,1758028813820,-56457.48546855,0.000249,2]
[385764816,1758028861438,-156.0,0.00022,2]
[385764817,1758028861461,-2500.0,0.0002369,2]
[385764818,1758028861481,-160.0,0.0002369,2]
[385764819,1758028861504,-177.59731267,0.00024681,2]
[385764820,1758028861524,-6177.0,0.00024682,2]
[385764821,1758028861545,-4171.0,0.00024682,2]
[385764822,1758028861567,-18866.0,0.00024682,2]
[385764823,1758028861590,-726.0,0.00024692,2]
[385764824,1758028861615,-898.0,0.00024692,2]
[385764825,1758028861635,-4225.0,0.00024692,2]
[385764826,1758028861659,-5000.0,0.000247,2]
[385764827,1758028861681,-170.67,0.00024793,2]
[385764828,1758028861704,-1556.8303668,0.00024837,2]
[385764829,1758028861725,-501.89119214,0.00024873,2]
[385764830,1758028861745,-504.73824801,0.00024873,2]
[385764831,1758028861765,-500.0,0.00024873,2]
[385764832,1758028861789,-500.0,0.00024873,2]
[385764833,1758028861811,-500.0,0.00024873,2]
[385764834,1758028861832,-500.0,0.00024873,2]
[385764835,1758028861853,-500.0,0.00024873,2]
[385764836,1758028861874,-196.13464959,0.00024897,2]
[385764837,1758028861897,-122513.13823079,0.000249,2]
[385764840,1758028987069,156.92,0.00012206,2]
[385764841,1758028987286,156.92,0.00018308,2]
[385764842,1758029071905,2012.85920336,0.00025,14]
[385764848,1758029177401,-661.38325258,0.0002001,2]
[385764849,1758029177433,-1625.50192115,0.00021,2]
[385764850,1758029177466,-151.71,0.00022,2]
[385764851,1758029177504,-515.95536276,0.00023686,2]
[385764852,1758029177536,-151.71,0.00023861,2]
[385764853,1758029177571,-156.92,0.00024411,2]
[385764854,1758029177603,-174.75,0.00024421,2]
[385764855,1758029177627,-1000.0,0.00024564,2]
[385764856,1758029177648,-1425.0,0.00024573,2]
[385764857,1758029177680,-869.7,0.00024586,2]